[Event "11th Tamil Nadu Circuit-IM 2024"]
[Site "Chennai"]
[Date "2024.01.09"]
[Round "1.1"]
[White "Harsh Suresh"]
[Black "Wagh Suyog"]
[Result "1-0"]
[ECO "D45"]
[WhiteElo "2361"]
[BlackElo "2266"]
[Annotator "ChessBase"]
[PlyCount "102"]
[EventDate "2024.01.09"]
[EventType "tourn"]
[EventCountry "IND"]
[SourceTitle "playchess.com"]
[Source "ChessBase"]
[SourceQuality "1"]
[TimeControl "5400+30"]

1. Nf3 {[%emt 0:00:11]} Nf6 {[%emt 0:01:22]} 2. c4 {[%emt 0:01:14]} c6 {[%emt 0:03:24]} 3. Nc3 {[%emt 0:00:45]} d5 {[%emt 0:00:21]} 4. e3 {[%emt 0:00:23]} e6 {[%emt 0:00:22]} 5. b3 {[%emt 0:00:16]} Bd6 {[%emt 0:00:19]} 6. Bb2 {[%emt 0:00:08]} O-O {[%emt 0:00:36]} 7. Be2 {[%emt 0:00:07]} b6 {[%emt 0:13:33]} 8. Qc2 {[%emt 0:00:27]} Bb7 {[%emt 0:01:04]} 9. O-O {[%emt 0:01:02]} Nbd7 {[%emt 0:01:20]} 10. d4 {[%emt 0:03:22]} Qe7 {[%emt 0:02:13]} 11. cxd5 {[%emt 0:09:54]} exd5 {[%emt 0:02:29]} 12. Bd3 {[%emt 0:01:21]} Rfe8 {[%emt 0:13:20]} 13. Rae1 {[%emt 0:14:17]} c5 {[%emt 0:11:32]} 14. Nb5 {[%emt 0:05:14]} Bb8 {[%emt 0:01:14]} 15. dxc5 {[%emt 0:19:21]} bxc5 {[%emt 0:00:47]} 16. Ba3 {[%emt 0:02:04]} a6 {[%emt 0:11:41]} 17. Nbd4 {[%emt 0:02:18]} g6 {[%emt 0:01:01]} 18. Ne2 {[%emt 0:00:10]} Bd6 {[%emt 0:06:10]} 19. Ng3 {[%emt 0:02:31]} Rac8 {[%emt 0:01:48]} 20. Qb1 {[%emt 0:09:14]} Ne5 {[%emt 0:06:13]} 21. Nxe5 {[%emt 0:01:53]} Bxe5 {[%emt 0:01:09]} 22. Bb2 {[%emt 0:02:02]} h5 {[%emt 0:14:09]} 23. Bxe5 {[%emt 0:05:01]} Qxe5 {[%emt 0:00:03]} 24. h3 {[%emt 0:00:23]} Qg5 {[%emt 0:03:32]} 25. Qa1 {[%emt 0:03:03]} d4 {[%emt 0:02:30]} 26. e4 {[%emt 0:08:57]} Qf4 {[%emt 0:00:29]} 27. Ne2 {[%emt 0:00:19]} Qd6 {[%emt 0:00:17]} 28. f3 {[%emt 0:00:12]} Nd7 {[%emt 0:00:43]} 29. Qc1 {[%emt 0:01:50]} Kg7 {[%emt 0:00:16]} 30. Qd2 {[%emt 0:00:16]} Ne5 {[%emt 0:00:39]} 31. Nc1 {[%emt 0:00:10]} a5 {[%emt 0:00:45]} 32. Qxa5 {[%emt 0:01:08]} Ra8 {[%emt 0:00:32]} 33. Qd2 {[%emt 0:00:02]} Ra3 {[%emt 0:00:08]} 34. Bb5 {[%emt 0:00:47]} Rea8 {[%emt 0:00:48]} 35. f4 {[%emt 0:00:29]} Nc6 {[%emt 0:00:25]} 36. e5 {[%emt 0:00:28]} Qe7 {[%emt 0:00:40]} 37. f5 {[%emt 0:00:22]} gxf5 {[%emt 0:00:25]} 38. Rxf5 {[%emt 0:00:10]} Rh8 {[%emt 0:00:08]} 39. Bc4 {[%emt 0:01:31]} Nd8 {[%emt 0:00:11]} 40. Ref1 {[%emt 0:02:59]} Bc8 {[%emt 0:01:08]} 41. Rxf7+ {[%emt 0:00:57]} Nxf7 {[%emt 0:00:03]} 42. Rxf7+ {[%emt 0:00:08]} Qxf7 {[%emt 0:00:03]} 43. Bxf7 {[%emt 0:00:09]} Kxf7 {[%emt 0:00:05]} 44. Qf4+ {[%emt 0:00:04]} Ke8 {[%emt 0:00:17]} 45. Qf6 {[%emt 0:00:09]} Rf8 {[%emt 0:00:12]} 46. Qg6+ {[%emt 0:00:50]} Ke7 {[%emt 0:00:35]} 47. Qd6+ {[%emt 0:00:05]} Kf7 {[%emt 0:00:11]} 48. Qxc5 {[%emt 0:00:07]} Ra6 {[%emt 0:00:04]} 49. Qxd4 {[%emt 0:00:12]} Rg6 {[%emt 0:00:06]} 50. Nd3 {[%emt 0:00:28]} Kg8 {[%emt 0:01:16]} 51. Nf4 {[%emt 0:00:10]} Rg5 {[%emt 0:00:04]} 1-0

[Event "11th Tamil Nadu Circuit-IM 2024"]
[Site "Chennai"]
[Date "2024.01.09"]
[Round "1.2"]
[White "Manik, Mikulas"]
[Black "Priyanka, K."]
[Result "1-0"]
[ECO "C72"]
[WhiteElo "2342"]
[BlackElo "2068"]
[Annotator "RC"]
[PlyCount "49"]
[EventDate "2024.01.09"]
[EventType "tourn"]
[EventCountry "IND"]
[SourceTitle "playchess.com"]
[Source "ChessBase"]
[SourceQuality "1"]
[TimeControl "5400+30"]

1. e4 {[%emt 0:00:02]} e5 {[%emt 0:00:27]} 2. Nf3 {[%emt 0:00:03]} Nc6 {[%emt 0:00:14]} 3. Bb5 {[%emt 0:00:09]} a6 {[%emt 0:00:26]} 4. Ba4 {[%emt 0:00:03]} d6 {[%emt 0:00:08]} 5. O-O {[%emt 0:00:15]} Bd7 {[%emt 0:00:51]} 6. Re1 {[%emt 0:01:47]} g6 {[%emt 0:00:36]} 7. d4 {[%emt 0:01:51]} Bg7 {[%emt 0:01:57]} 8. Bg5 {[%emt 0:02:57]} f6 {[%emt 0:02:55]} 9. Be3 {[%emt 0:00:28]} Nh6 {[%emt 0:04:05]} 10. dxe5 {[%emt 0:00:13]} Nxe5 {[%emt 0:05:01]} 11. Bb3 {[%emt 0:03:20]} Bg4 {[%emt 0:05:35]} 12. Nbd2 {[%emt 0:02:08]} Qe7 {[%emt 0:19:37]} 13. h3 {[%emt 0:00:53]} Bd7 {[%emt 0:03:01]} 14. Nd4 {[%emt 0:09:44]} O-O-O {[%emt 0:18:03]} 15. f4 {[%emt 0:00:58]} Nc6 {[%emt 0:00:31]} 16. N2f3 {[%emt 0:00:07]} Rhe8 {[%emt 0:05:57]} 17. f5 {[%emt 0:03:06]} gxf5 {[%emt 0:04:33]} 18. Qd2 {[%emt 0:00:59]} Nxd4 {[%emt 0:08:23]} 19. Nxd4 {[%emt 0:00:51]} Qf8 {[%emt 0:02:02]} 20. Qa5 {[%emt 0:07:10]} fxe4 {[%emt 0:03:17]} 21. Bd5 {[%emt 0:01:25]} f5 {[%emt 0:04:01]} 22. Rad1 {[%emt 0:08:40]} c6 {[%emt 0:03:46]} 23. Nb5 {[%emt 0:01:13]} cxb5 {[%emt 0:02:36]} 24. Bxb7+ {[%emt 0:00:09]} Kb8 {[%emt 0:02:08]} 25. Qb6 {[%emt 0:00:06]} 1-0

[Event "11th Tamil Nadu Circuit-IM 2024"]
[Site "Chennai"]
[Date "2024.01.09"]
[Round "1.3"]
[White "Hemanth Raam"]
[Black "Khusenkhojaev, Muhammad"]
[Result "1-0"]
[ECO "C45"]
[WhiteElo "2161"]
[BlackElo "2379"]
[Annotator "RC"]
[PlyCount "134"]
[EventDate "2024.01.09"]
[EventType "tourn"]
[EventCountry "IND"]
[SourceTitle "playchess.com"]
[Source "ChessBase"]
[SourceQuality "1"]
[TimeControl "5400+30"]

1. e4 {[%emt 0:00:04]} e5 {[%emt 0:00:07]} 2. Nf3 {[%emt 0:00:08]} Nc6 {[%emt 0:00:05]} 3. d4 {[%emt 0:00:10]} exd4 {[%emt 0:00:07]} 4. Nxd4 {[%emt 0:00:05]} Qf6 {[%emt 0:00:06]} 5. Nf3 {[%emt 0:00:30]} Bb4+ {[%emt 0:05:18]} 6. c3 {[%emt 0:00:11]} Bc5 {[%emt 0:00:06]} 7. Be2 {[%emt 0:00:11]} d6 {[%emt 0:00:42]} 8. O-O {[%emt 0:02:25]} h6 {[%emt 0:02:25]} 9. Qc2 {[%emt 0:10:14]} a5 {[%emt 0:04:01]} 10. Nbd2 {[%emt 0:05:43]} Nge7 {[%emt 0:00:18]} 11. Nb3 {[%emt 0:09:11]} Bb6 {[%emt 0:00:51]} 12. Nbd4 {[%emt 0:00:23]} O-O {[%emt 0:00:59]} 13. Be3 {[%emt 0:02:43]} d5 {[%emt 0:07:32]} 14. Nxc6 {[%emt 0:13:12]} Qxc6 {[%emt 0:00:55]} 15. Ne5 {[%emt 0:04:43]} Qe6 {[%emt 0:04:03]} 16. Bxb6 {[%emt 0:02:43]} Qxb6 {[%emt 0:08:33]} 17. exd5 {[%emt 0:02:26]} Nxd5 {[%emt 0:00:20]} 18. Bc4 {[%emt 0:02:38]} Qf6 {[%emt 0:06:39]} 19. Qe4 {[%emt 0:10:46]} Nb6 {[%emt 0:08:13]} 20. Bd3 {[%emt 0:01:53]} g6 {[%emt 0:00:13]} 21. f4 {[%emt 0:01:19]} h5 {[%emt 0:09:22]} 22. Rae1 {[%emt 0:01:56]} Re8 {[%emt 0:09:22]} 23. Qf3 {[%emt 0:06:18]} c6 {[%emt 0:02:07]} 24. Qf2 {[%emt 0:11:38]} Nd5 {[%emt 0:00:54]} 25. c4 {[%emt 0:00:23]} Ne7 {[%emt 0:07:09]} 26. Qb6 {[%emt 0:02:12]} Qd6 {[%emt 0:03:18]} 27. Rd1 {[%emt 0:02:03]} Qb4 {[%emt 0:01:20]} 28. Qf2 {[%emt 0:00:25]} Bf5 {[%emt 0:02:09]} 29. a3 {[%emt 0:00:37]} Qb3 {[%emt 0:02:26]} 30. Bxf5 {[%emt 0:00:25]} Nxf5 {[%emt 0:00:05]} 31. Rd3 {[%emt 0:00:06]} Qa2 {[%emt 0:00:56]} 32. Qb6 {[%emt 0:00:38]} Re7 {[%emt 0:00:41]} 33. Rfd1 {[%emt 0:07:16]} Kg7 {[%emt 0:00:38]} 34. Qb3 {[%emt 0:01:18]} Qxb3 {[%emt 0:00:30]} 35. Rxb3 {[%emt 0:00:01]} a4 {[%emt 0:01:58]} 36. Rb4 {[%emt 0:00:02]} f6 {[%emt 0:01:50]} 37. Nf3 {[%emt 0:00:13]} Kf7 {[%emt 0:00:33]} 38. Kf2 {[%emt 0:00:29]} Ra5 {[%emt 0:05:32]} 39. Rd8 {[%emt 0:00:17]} Ne3 {[%emt 0:00:54]} 40. Rb8 {[%emt 0:01:59]} Ng4+ {[%emt 0:00:43]} 41. Kg3 {[%emt 0:00:06]} Ra7 {[%emt 0:00:06]} 42. Rd8 {[%emt 0:00:55]} Ne3 {[%emt 0:00:31]} 43. Rd3 {[%emt 0:00:19]} Ra5 {[%emt 0:00:26]} 44. Rc3 {[%emt 0:00:42]} g5 {[%emt 0:00:37]} 45. fxg5 {[%emt 0:00:26]} fxg5 {[%emt 0:00:07]} 46. h3 {[%emt 0:00:30]} Kf6 {[%emt 0:01:46]} 47. Rd3 {[%emt 0:00:20]} Rc5 {[%emt 0:00:50]} 48. Rxa4 {[%emt 0:00:37]} Rxc4 {[%emt 0:03:13]} 49. Rxc4 {[%emt 0:00:35]} Nxc4 {[%emt 0:00:01]} 50. Rb3 {[%emt 0:00:08]} Re2 {[%emt 0:01:04]} 51. Rxb7 {[%emt 0:00:50]} h4+ {[%emt 0:00:31]} 52. Kh2 {[%emt 0:00:22]} Ne3 {[%emt 0:00:07]} 53. Rb6 {[%emt 0:00:34]} Rxg2+ {[%emt 0:01:10]} 54. Kh1 {[%emt 0:00:00]} Kf5 {[%emt 0:02:13]} 55. Rb3 {[%emt 0:01:00]} Kf4 {[%emt 0:00:41]} 56. Rxe3 {[%emt 0:00:01]} Rg3 {[%emt 0:00:18]} 57. Rc3 {[%emt 0:00:17]} Rxh3+ {[%emt 0:00:47]} 58. Kg2 {[%emt 0:00:01]} g4 {[%emt 0:00:07]} 59. Rc4+ {[%emt 0:01:48]} Kf5 {[%emt 0:00:02]} 60. Rc5+ {[%emt 0:00:22]} Kf4 {[%emt 0:00:47]} 61. Rc4+ {[%emt 0:00:01]} Kf5 {[%emt 0:00:00]} 62. Nd4+ {[%emt 0:00:56]} Kg5 {[%emt 0:00:34]} 63. Rc3 {[%emt 0:00:34]} Rxc3 {[%emt 0:00:42]} 64. bxc3 {[%emt 0:00:01]} Kf4 {[%emt 0:00:07]} 65. a4 {[%emt 0:00:34]} g3 {[%emt 0:01:40]} 66. Ne2+ {[%emt 0:00:37]} Ke5 {[%emt 0:00:11]} 67. Kh3 {[%emt 0:00:14]} Kd5 {[%emt 0:00:10]} 1-0

[Event "11th Tamil Nadu Circuit-IM 2024"]
[Site "Chennai"]
[Date "2024.01.09"]
[Round "1.4"]
[White "Daakshin Arun"]
[Black "Podolchenko, Evgeniy"]
[Result "0-1"]
[ECO "A58"]
[WhiteElo "2309"]
[BlackElo "2357"]
[Annotator "ChessBase"]
[PlyCount "97"]
[EventDate "2024.01.09"]
[EventType "tourn"]
[EventCountry "IND"]
[SourceTitle "playchess.com"]
[Source "ChessBase"]
[SourceQuality "1"]
[TimeControl "5400+30"]

1. d4 {[%emt 0:00:03]} Nf6 {[%emt 0:00:05]} 2. c4 {[%emt 0:00:07]} c5 {[%emt 0:00:06]} 3. d5 {[%emt 0:00:06]} b5 {[%emt 0:00:05]} 4. cxb5 {[%emt 0:00:42]} a6 {[%emt 0:00:02]} 5. bxa6 {[%emt 0:00:21]} g6 {[%emt 0:00:06]} 6. Nc3 {[%emt 0:00:58]} Bg7 {[%emt 0:00:07]} 7. e4 {[%emt 0:00:43]} O-O {[%emt 0:00:12]} 8. a7 {[%emt 0:00:17]} Rxa7 {[%emt 0:00:03]} 9. Nf3 {[%emt 0:00:18]} e6 {[%emt 0:00:07]} 10. Be2 {[%emt 0:01:25]} exd5 {[%emt 0:00:03]} 11. exd5 {[%emt 0:00:07]} d6 {[%emt 0:00:20]} 12. O-O {[%emt 0:00:54]} Na6 {[%emt 0:00:11]} 13. Nb5 {[%emt 0:06:39]} Rd7 {[%emt 0:03:14]} 14. Bc4 {[%emt 0:03:02]} Bb7 {[%emt 0:14:00]} 15. Qb3 {[%emt 0:04:46]} Qa8 {[%emt 0:08:52]} 16. Rd1 {[%emt 0:02:04]} Nc7 {[%emt 0:08:39]} 17. Nxc7 {[%emt 0:14:55]} Rxc7 {[%emt 0:00:03]} 18. Bf4 {[%emt 0:09:39]} Rd8 {[%emt 0:00:32]} 19. h3 {[%emt 0:06:25]} Ba6 {[%emt 0:00:48]} 20. Nd2 {[%emt 0:06:28]} Rb7 {[%emt 0:11:07]} 21. Qd3 {[%emt 0:02:04]} Rxb2 {[%emt 0:06:34]} 22. Bg5 {[%emt 0:11:32]} Bxc4 {[%emt 0:06:02]} 23. Nxc4 {[%emt 0:01:36]} Rxa2 {[%emt 0:00:24]} 24. Rab1 {[%emt 0:04:08]} h6 {[%emt 0:01:01]} 25. Bxf6 {[%emt 0:02:00]} Bxf6 {[%emt 0:00:02]} 26. Rd2 {[%emt 0:04:48]} Bd4 {[%emt 0:02:02]} 27. Qf3 {[%emt 0:03:44]} Rxd2 {[%emt 0:03:30]} 28. Nxd2 {[%emt 0:00:07]} Qa2 {[%emt 0:02:07]} 29. Rb7 {[%emt 0:00:50]} Rf8 {[%emt 0:00:01]} 30. Ne4 {[%emt 0:02:01]} Kg7 {[%emt 0:01:28]} 31. Ng3 {[%emt 0:04:37]} Be5 {[%emt 0:00:17]} 32. Qe4 {[%emt 0:01:44]} Qa8 {[%emt 0:05:11]} 33. Rd7 {[%emt 0:02:56]} Rd8 {[%emt 0:01:48]} 34. Rxd8 {[%emt 0:02:41]} Qxd8 {[%emt 0:00:01]} 35. f4 {[%emt 0:00:18]} Bd4+ {[%emt 0:00:24]} 36. Kh2 {[%emt 0:00:18]} Qa5 {[%emt 0:03:19]} 37. h4 {[%emt 0:00:57]} h5 {[%emt 0:01:01]} 38. Qe7 {[%emt 0:01:05]} Qa1 {[%emt 0:16:39]} 39. Qg5 {[%emt 0:02:01]} Bg1+ {[%emt 0:00:50]} 40. Kh3 {[%emt 0:00:19]} Qc3 {[%emt 0:00:23]} 41. f5 {[%emt 0:00:10]} Bf2 {[%emt 0:01:01]} 42. f6+ {[%emt 0:00:52]} Kg8 {[%emt 0:00:45]} 43. Qf4 {[%emt 0:00:40]} Qxg3+ {[%emt 0:00:46]} 44. Qxg3 {[%emt 0:00:05]} Bxg3 {[%emt 0:00:03]} 45. Kxg3 {[%emt 0:00:07]} Kh7 {[%emt 0:00:05]} 46. Kf4 {[%emt 0:00:13]} Kh6 {[%emt 0:00:01]} 47. g3 {[%emt 0:00:44]} c4 {[%emt 0:00:15]} 48. Ke4 {[%emt 0:00:04]} g5 {[%emt 0:00:05]} 49. Kd4 {[%emt 0:00:12]} 0-1

[Event "11th Tamil Nadu Circuit-IM 2024"]
[Site "Chennai"]
[Date "2024.01.09"]
[Round "1.5"]
[White "Lokesh, N.."]
[Black "Ziatdinov, Raset"]
[Result "1-0"]
[ECO "C54"]
[WhiteElo "2140"]
[BlackElo "2100"]
[Annotator "TA"]
[PlyCount "64"]
[EventDate "2024.01.09"]
[EventType "tourn"]
[EventCountry "IND"]
[SourceTitle "playchess.com"]
[Source "ChessBase"]
[SourceQuality "1"]
[TimeControl "5400+30"]

{[%evp 12,64,12,12,32,39,35,31,35,37,47,54,52,56,62,75,66,56,97,71,66,62,106,101,113,102,150,143,197,209,436,447,528,524,516,514,491,410,825,406,658,677,817,816,810,766,927,891,1252,1238,29977,29978,29996,29997,29997]} 1. e4 {[%emt 0:00:05]} e5 {[%emt 0:00:05]} 2. Nf3 {[%emt 0:00:05]} Nc6 {[%emt 0:00:05]} 3. Bc4 {[%emt 0:00:30]} Bc5 {[%emt 0:00:30]} 4. O-O {[%emt 0:00:30]} Nf6 {[%emt 0:00:30]} 5. d3 {[%emt 0:00:30]} O-O {[%emt 0:00:30]} 6. h3 {[%emt 0:00:30]} d6 {[%emt 0:00:30]} 7. c3 {[%emt 0:00:30]} Be6 {[%emt 0:00:30] 7...a5 is becoming the main line. C54: Giuoco Piano: 4 c3 Nf6, main lines with 5 d4 and 5 d3.} 8. Bxe6 {[%emt 0:01:13]} fxe6 {[%emt 0:00:00]} 9. b4 {[%emt 0:00:07]} Bb6 {[%emt 0:00:00] White is slightly better.} 10. Nbd2 {[%emt 0:00:06]} a5 {[%emt 0:00:56]} 11. b5 {[%emt 0:05:12] [#]} Nb8 $146 {[%emt 0:00:06]} ({Predecessor:} 11... Ne7 12. Qb3 Qd7 13. Nc4 a4 14. Nxb6 axb3 15. Nxd7 Nxd7 16. Bg5 Ng6 17. axb3 Nc5 {½-½ Loftgaard,M (2267)-Jarlskov,D (2177) DEN-ch U16 rapid 2022 (5)}) 12. Nc4 {[%emt 0:02:13]} Nbd7 {[%emt 0:00:18]} 13. Re1 {[%emt 0:10:52]} h6 14. Qe2 {[%emt 0:00:00]} Nh5 {[%emt 0:01:00]} 15. d4 {[%emt 0:00:00]} Nf4 {[%emt 0:00:30]} 16. Bxf4 {[%emt 0:06:34]} exf4 {[%emt 0:03:24] White stays focused until the end.} 17. e5 {[%emt 0:00:30][%cal Be4e5,Be5e6,Be6e7][%mdl 32] White is more active.} d5 {[%emt 0:00:30] [#]} 18. Nb2 {[%emt 0:09:45]} c5 {[%emt 0:15:08]} ({Better is} 18... a4) 19. c4 $16 {[%emt 0:00:30]} cxd4 {[%emt 0:00:30]} (19... Re8 $16) 20. cxd5 $18 {[%emt 0:00:30]} exd5 $2 {[%emt 0:00:30]} (20... Qe8 21. Na4 Rc8) 21. e6 {[%emt 0:05:57][%cal Oe6e7]} Re8 {[%emt 0:06:54]} 22. e7 {[%emt 0:00:08]} Qc7 {[%emt 0:00:23]} 23. Qe6+ {[%emt 0:00:30]} Kh8 {[%emt 0:00:30]} 24. Nh4 {[%emt 0:00:30][%cal Bf3h4,Bh4g6,Bg6f4,Bf4d5][%mdl 32]} ({Not} 24. Qxd5 Nf6 25. Qf7 Qc2 $18) 24... Nc5 {[%emt 0:00:30]} (24... d3 $142 25. Nxd3 Nc5 26. Qxd5 Nxd3 27. Qxd3 Qc5) 25. Ng6+ {[%emt 0:00:30]} Kh7 {[%emt 0:00:30]} 26. Qf5 {[%emt 0:00:30] And now Nf8+ would win.} ({Stronger than} 26. Qxd5 Kxg6 $17) 26... Qd6 {[%emt 0:00:30]} 27. Nxf4+ {[%emt 0:00:30][%mdl 64] Discovered Attack} Kh8 {[%emt 0:00:30]} 28. Nxd5 {[%emt 0:00:30] Strongly threatening Nc4.} Qd7 {[%emt 0:00:30]} 29. Qh5 {[%emt 0:00:30]} Qxb5 {[%emt 0:00:30] [#]} 30. Nc4 $1 {[%emt 0:00:30][%mdl 576] Decoy} Ba7 {[%emt 0:00:30]} (30... Ne4 31. Ncxb6) 31. Nd6 {[%emt 0:00:30]} Qd7 {[%emt 0:00:30]} 32. Nf7+ {[%emt 0:00:30] Excellent horsemanship.} Kh7 {[%emt 0:00:30] An entertaining game by Lokesh.   Weighted Error Value: White=0.38/Black=0.71} 1-0

[Event "11th Tamil Nadu Circuit-IM 2024"]
[Site "Chennai"]
[Date "2024.01.09"]
[Round "2.1"]
[White "Wagh Suyog"]
[Black "Ziatdinov, Raset"]
[Result "1-0"]
[ECO "E62"]
[WhiteElo "2266"]
[BlackElo "2100"]
[Annotator "TA"]
[PlyCount "73"]
[EventDate "2024.01.09"]
[EventType "tourn"]
[EventCountry "IND"]
[SourceTitle "playchess.com"]
[Source "ChessBase"]
[SourceQuality "1"]
[TimeControl "5400+30"]

{[%evp 11,73,20,34,6,43,46,41,50,53,41,62,50,60,48,50,45,56,55,72,31,36,24,148,140,133,101,107,108,143,139,197,202,188,192,230,237,235,236,229,236,243,246,239,239,295,314,485,505,504,516,507,502,500,498,512,522,516,514,511,504,638,631,602,586]} 1. d4 {[%emt 0:07:04]} Nf6 {[%emt 0:00:14]} 2. c4 {[%emt 0:00:48]} g6 {[%emt 0:00:11]} 3. g3 {[%emt 0:00:05]} Bg7 {[%emt 0:00:14]} 4. Bg2 {[%emt 0:00:05]} O-O {[%emt 0:00:08]} 5. Nc3 {[%emt 0:00:02]} d6 {[%emt 0:00:14]} 6. Nf3 {[%emt 0:00:13]} Nc6 {[%emt 0:00:20]} 7. Bf4 {[%emt 0:01:21] E62: King's Indian: Fianchetto: 6...c6 and Panno Variation (6...Nc6) without ...a6.} Nd7 {[%emt 0:02:03]} 8. Qd2 {[%emt 0:04:29] [#]} e5 $146 {[%emt 0:10:02]} ({Predecessor:} 8... Re8 9. Bh6 Bf6 10. h4 e5 11. d5 Nd4 12. Ne4 Nc5 13. Nxf6+ Qxf6 14. Nxd4 exd4 {1-0 Pilarski,D (1828)-Bugajski,M (1601) POL-ch U18 Chotowa 2009 (8)}) 9. Bg5 {[%emt 0:00:10] White is slightly better.} f6 {[%emt 0:00:37]} 10. Be3 {[%emt 0:00:10]} Re8 {[%emt 0:15:54]} 11. dxe5 {[%emt 0:10:41]} Ndxe5 {[%emt 0:02:22]} 12. Nxe5 {[%emt 0:03:23]} Nxe5 {[%emt 0:03:16]} 13. h3 {[%emt 0:00:58]} Be6 {[%emt 0:01:07]} (13... Nxc4 $2 14. Bd5+ Be6 15. Bxe6+ Rxe6 16. Qd5 $18) 14. b3 {[%emt 0:01:27]} Qc8 {[%emt 0:01:34]} 15. Nd5 {[%emt 0:06:36]} c6 {[%emt 0:04:35]} 16. Nf4 {[%emt 0:00:00]} Bxc4 {[%emt 0:07:35]} 17. bxc4 $16 {[%emt 0:03:33]} Nxc4 {[%emt 0:00:00]} 18. Qd3 {[%emt 0:00:36]} Nxe3 {[%emt 0:00:00]} 19. fxe3 {[%emt 0:00:01][%cal Bf2e3,Be3e4][%mdl 32]} d5 {[%emt 0:00:00]} 20. Rc1 {[%emt 0:01:25] Threatens to win with Bxd5+.} Qd7 {[%emt 0:00:00] [#]} (20... Qd8 $16 21. e4 Qa5+ 22. Kf2 Qb6+ 23. e3 dxe4 24. Qc4+ (24. Bxe4 Rad8 $16) 24... Kh8) 21. e4 $1 $18 {[%emt 0:00:47][%cal Re4d5]} d4 {[%emt 0:00:00]} 22. h4 {[%emt 0:07:23][%cal Bh3h4,Bh4h5][%mdl 32]} Rad8 {[%emt 0:00:33]} 23. h5 {[%emt 0:05:15]} g5 {[%emt 0:02:03]} 24. Qb3+ {[%emt 0:04:17]} Qf7 {[%emt 0:00:46]} 25. Nd3 {[%emt 0:00:23]} Rd6 {[%emt 0:04:55]} 26. O-O {[%emt 0:15:29]} Qxb3 {[%emt 0:02:32]} 27. axb3 {[%emt 0:00:01]} a5 {[%emt 0:00:39]} 28. Rf5 {[%emt 0:00:39]} b6 {[%emt 0:06:39] [#]} (28... Ra8 $142 29. Ra1 Bf8 30. Rfxa5 Rxa5 31. Rxa5 Rd8) 29. e5 $1 {[%emt 0:02:50] White is clearly winning.} fxe5 {[%emt 0:00:06] Black is weak on the light squares} 30. Bxc6 {[%emt 0:04:44]} Rf8 {[%emt 0:00:10]} 31. Be4 {[%emt 0:01:00]} Rxf5 {[%emt 0:01:53]} 32. Bxf5 {[%emt 0:00:06]} h6 {[%emt 0:00:16]} 33. Rc8+ {[%emt 0:01:00]} Kf7 {[%emt 0:00:08]} 34. Rc7+ {[%emt 0:00:06]} Kf8 {[%emt 0:00:29]} 35. Kg2 {[%emt 0:00:30]} Bf6 {[%emt 0:01:34]} 36. Kf3 {[%emt 0:00:29]} Bd8 {[%emt 0:00:40]} 37. Rb7 {[%emt 0:00:32] Weighted Error Value: White=0.05 (flawless) /Black=0.28 (precise)} 1-0

[Event "11th Tamil Nadu Circuit-IM 2024"]
[Site "Chennai"]
[Date "2024.01.09"]
[Round "2.2"]
[White "Podolchenko, Evgeniy"]
[Black "Lokesh, N.."]
[Result "1-0"]
[ECO "D31"]
[WhiteElo "2357"]
[BlackElo "2140"]
[Annotator "ChessBase"]
[PlyCount "67"]
[EventDate "2024.01.09"]
[EventType "tourn"]
[EventCountry "IND"]
[SourceTitle "playchess.com"]
[Source "ChessBase"]
[SourceQuality "1"]
[TimeControl "5400+30"]

1. d4 {[%emt 0:00:09]} d5 {[%emt 0:00:45]} 2. c4 {[%emt 0:00:02]} e6 {[%emt 0:00:06]} 3. Nc3 {[%emt 0:00:08]} Be7 {[%emt 0:00:11]} 4. cxd5 {[%emt 0:00:17]} exd5 {[%emt 0:00:16]} 5. Bf4 {[%emt 0:00:03]} c6 {[%emt 0:01:01]} 6. e3 {[%emt 0:00:03]} Bf5 {[%emt 0:00:46]} 7. Nge2 {[%emt 0:01:06]} Nd7 {[%emt 0:11:24]} 8. Ng3 {[%emt 0:00:03]} Bg6 {[%emt 0:08:06]} 9. Be2 {[%emt 0:07:10]} Nf8 {[%emt 0:05:43]} 10. h4 {[%emt 0:04:01]} Bxh4 {[%emt 0:05:43]} 11. Qb3 {[%emt 0:01:55]} Bxg3 {[%emt 0:01:18]} 12. Bxg3 {[%emt 0:00:03]} Qb6 {[%emt 0:02:48]} 13. Qa3 {[%emt 0:08:09]} Ne6 {[%emt 0:00:40]} 14. Bd6 {[%emt 0:02:54]} Qd8 {[%emt 0:02:14]} 15. Nxd5 {[%emt 0:06:15]} Qg5 {[%emt 0:07:54]} 16. Nc3 {[%emt 0:09:11]} Qxg2 {[%emt 0:02:17]} 17. Rf1 {[%emt 0:00:13]} Nf6 {[%emt 0:01:26]} 18. Qb4 {[%emt 0:07:13]} Rd8 {[%emt 0:05:19]} 19. Be5 {[%emt 0:15:00]} Ng4 {[%emt 0:17:23]} 20. Bxg4 {[%emt 0:25:02]} Qxg4 {[%emt 0:00:14]} 21. Rd1 {[%emt 0:03:57]} Rd7 {[%emt 0:03:33]} 22. f3 {[%emt 0:01:21]} Qh4+ {[%emt 0:00:37]} 23. Rf2 {[%emt 0:00:05]} c5 {[%emt 0:01:10]} 24. Qa4 {[%emt 0:00:43]} cxd4 {[%emt 0:02:58]} 25. Bxd4 {[%emt 0:00:20]} Qh5 {[%emt 0:17:13]} 26. Bb6 {[%emt 0:04:32]} Nf8 {[%emt 0:00:54]} 27. Nd5 {[%emt 0:00:23]} f6 {[%emt 0:00:59]} 28. Nc7+ {[%emt 0:00:45]} Ke7 {[%emt 0:00:07]} 29. Qb4+ {[%emt 0:00:37]} Kd8 {[%emt 0:01:09]} 30. Ne6+ {[%emt 0:01:36]} Ke8 {[%emt 0:00:19]} 31. Rxd7 {[%emt 0:00:25]} Kxd7 {[%emt 0:00:24]} 32. Nxf8+ {[%emt 0:00:52]} Rxf8 {[%emt 0:00:34]} 33. Rd2+ {[%emt 0:00:21]} Ke6 {[%emt 0:00:28]} 34. Qc4+ {[%emt 0:02:36]} 1-0